fUST/lending_fUST_20240320
["ID","MTS","AMOUNT","RATE_DAILY","PERIOD"]
[319564845,1710865840243,-1980.00425543,0.000929,30]
[319564846,1710865840252,-10000.0,0.000929,120]
[319564847,1710865840261,-10000.0,0.000929,120]
[319564848,1710865840271,-1000.0,0.000929,120]
[319564849,1710865840280,-1019.5549311,0.000929,120]
[319564850,1710865840290,-72943.0006,0.000929,120]
[319564851,1710865840299,-386.722558,0.000929,120]
[319564853,1710865840309,-151.0,0.000929,120]
[319564854,1710865840318,-386.722558,0.000929,120]
[319564856,1710865840327,-969.87825,0.000929,120]
[319564857,1710865840337,-969.87825,0.000929,120]
[319564859,1710865840346,-726.957722,0.000929,120]
[319564861,1710865840355,-726.957722,0.000929,120]
[319564863,1710865840364,-151.0,0.000929,120]
[319564865,1710865840376,-316403.63058582,0.00092908,120]
[319564867,1710865840385,-316403.63058582,0.0009291,120]
[319564873,1710865840445,-316403.63058582,0.00092977,120]
[319564875,1710865840456,-154.95351395,0.00092998,2]
[319564877,1710865840466,-929.00320615,0.00092998,14]
[319564879,1710865840479,-189.31717357,0.00092998,14]
[319564882,1710865840490,-3222.73716798,0.00092998,14]
[319564883,1710865840500,-595.89703844,0.00092998,14]
[319564885,1710865840509,-1698.90712365,0.00092998,14]
[319564888,1710865840519,-170.29760009,0.00092998,14]
[319564889,1710865840528,-165.8465471,0.00092998,14]
[319564891,1710865840538,-500.0,0.00092999,120]
[319564893,1710865840547,-500.0,0.00092999,120]
[319564895,1710865840559,-396.45169956,0.00092999,120]
[319564897,1710865840568,-758.15,0.00092999,120]
[319564900,1710865840580,-758.15,0.00092999,120]
[319564902,1710865840591,-758.15,0.00092999,120]
[319564904,1710865840601,-758.15,0.00092999,120]
[319564906,1710865840611,-758.15,0.00092999,120]
[319564908,1710865840621,-758.15,0.00092999,120]
[319564910,1710865840631,-758.15,0.00092999,120]
[319564912,1710865840641,-15418.65023599,0.00093,120]
[319564913,1710865840650,-1500.0,0.00093,120]
[319564915,1710865840660,-180.05726267,0.00093,14]
[319564917,1710865840670,-154.98274857,0.00093,14]
[319564920,1710865840681,-1000.0,0.00093,120]
[319564921,1710865840691,-1000.0,0.00093,120]
[319564924,1710865840700,-1000.0,0.00093,120]
[319564925,1710865840710,-1000.0,0.00093,120]
[319564926,1710865840721,-1000.0,0.00093,120]
[319564928,1710865840730,-1000.0,0.00093,120]
[319564930,1710865840740,-1000.0,0.00093,120]
[319564932,1710865840749,-1000.0,0.00093,120]
[319564934,1710865840758,-1000.0,0.00093,120]
[319564936,1710865840767,-1000.0,0.00093,120]
[319564937,1710865840777,-1000.0,0.00093,120]
[319564940,1710865840787,-1000.0,0.00093,120]
[319564942,1710865840796,-1000.0,0.00093,120]
[319564943,1710865840806,-1000.0,0.00093,120]
[319564945,1710865840815,-1000.0,0.00093,120]
[319564947,1710865840825,-1000.0,0.00093,120]
[319564949,1710865840834,-380096.50000001,0.00093,120]
[319564951,1710865840844,-288.804628,0.00093,120]
[319564953,1710865840853,-288.804628,0.00093,120]
[319564955,1710865840862,-288.804628,0.00093,120]
[319564957,1710865840872,-288.804628,0.00093,120]
[319564959,1710865840881,-386.722558,0.00093,120]
[319564961,1710865840892,-151.0,0.00093,120]
[319564963,1710865840902,-386.722558,0.00093,120]
[319564965,1710865840912,-969.87825,0.00093,120]
[319564967,1710865840922,-969.87825,0.00093,120]
[319564969,1710865840933,-490.0,0.00093,120]
[319564971,1710865840944,-490.0,0.00093,60]
[319564973,1710865840954,-490.0,0.00093,30]
[319564975,1710865840966,-490.0,0.00093,14]
[319564976,1710865840983,-490.0,0.00093,7]
[319564978,1710865840996,-726.957722,0.00093,120]
[319564980,1710865841007,-726.957722,0.00093,120]
[319564981,1710865841019,-151.0,0.00093,120]
[319564983,1710865841028,-6994.87,0.000934,120]
[319564985,1710865841037,-6104.71,0.000934,120]
[319564986,1710865841049,-3525.91,0.000934,120]
[319564988,1710865841059,-193.19,0.0009348,35]
[319564989,1710865841071,-1287.67,0.0009349,120]
[319564990,1710865841081,-1287.67,0.0009349,120]
[319564991,1710865841092,-1287.67,0.0009349,120]
[319564993,1710865841102,-1287.67,0.0009349,120]
[319564995,1710865841112,-1287.67,0.0009349,120]
[319564997,1710865841123,-1287.67,0.0009349,120]
[319564999,1710865841134,-1287.67,0.0009349,120]
[319565000,1710865841144,-1287.67,0.0009349,120]
[319565001,1710865841155,-1287.67,0.0009349,120]
[319565003,1710865841167,-150.5,0.0009349,35]
[319565004,1710865841178,-160.0,0.00093499,120]
[319565005,1710865841188,-758.15,0.00093499,120]
[319565006,1710865841200,-758.15,0.00093499,120]
[319565007,1710865841210,-758.15,0.00093499,120]
[319565008,1710865841226,-758.15,0.00093499,120]
[319565009,1710865841237,-758.15,0.00093499,120]
[319565010,1710865841249,-758.15,0.00093499,120]
[319565011,1710865841259,-758.15,0.00093499,120]
[319565012,1710865841270,-758.15,0.00093499,120]
[319565013,1710865841280,-758.15,0.00093499,120]
[319565014,1710865841290,-758.15,0.00093499,120]
[319565015,1710865841305,-758.15,0.00093499,120]
[319565016,1710865841316,-758.20243343,0.00093499,120]
[319565017,1710865841378,-1991767.49140758,0.000935,120]
[319565018,1710865841389,-288.804628,0.000935,120]
[319565019,1710865841402,-288.804628,0.000935,120]
[319565020,1710865841414,-386.722558,0.000935,120]
[319565021,1710865841426,-151.0,0.000935,120]
[319565022,1710865841436,-386.722558,0.000935,120]
[319565023,1710865841448,-969.87825,0.000935,120]
[319565024,1710865841459,-969.87825,0.000935,120]
[319565025,1710865841474,-726.957722,0.000935,120]
[319565026,1710865841484,-726.957722,0.000935,120]
[319565027,1710865841495,-151.0,0.000935,120]
[319565028,1710865841506,-500.0,0.00093999,120]
[319565029,1710865841516,-500.0,0.00093999,120]
[319565030,1710865841526,-500.0,0.00093999,120]
[319565031,1710865841535,-158.9,0.00093999,120]
[319565032,1710865841545,-1146.83,0.00093999,120]
[319565033,1710865841554,-1146.83,0.00093999,120]
[319565034,1710865841564,-1146.83,0.00093999,120]
[319565035,1710865841573,-1146.83,0.00093999,120]
[319565036,1710865841584,-1146.83,0.00093999,120]
[319565037,1710865841594,-3409.37,0.00093999,120]
[319565038,1710865841606,-3409.37,0.00093999,120]
[319565039,1710865841615,-3409.37,0.00093999,120]
[319565040,1710865841624,-3409.37,0.00093999,120]
[319565041,1710865841634,-3409.37,0.00093999,120]
[319565042,1710865841643,-160.0,0.00093999,120]
[319565043,1710865841653,-10000.0,0.00094,120]
[319565044,1710865841663,-3346.71541674,0.00094,120]
[319565045,1710865841672,-999.0,0.00094,120]
[319565046,1710865841681,-197953.392348,0.00094,120]
[319565047,1710865841690,-288.804628,0.00094,120]
[319565048,1710865841700,-288.804628,0.00094,120]
[319565049,1710865841709,-386.722558,0.00094,120]
[319565050,1710865841718,-151.0,0.00094,120]
[319565051,1710865841730,-386.722558,0.00094,120]
[319565052,1710865841739,-969.87825,0.00094,120]
[319565053,1710865841748,-969.87825,0.00094,120]
[319565054,1710865841758,-726.957722,0.00094,120]
[319565055,1710865841768,-726.957715,0.00094,120]
[319565056,1710865841785,-151.0,0.00094,120]
[319565057,1710865841801,-150.0,0.00094499,120]
[319565058,1710865841818,-2000.0,0.000945,120]
[319565059,1710865841839,-1146.83,0.00094694,120]
[319565060,1710865841854,-1146.83,0.00094694,120]
[319565061,1710865841872,-1146.83,0.00094694,120]
[319565062,1710865841889,-1146.83,0.00094694,120]
[319565063,1710865841903,-1146.83,0.00094694,120]
[319565064,1710865841923,-1146.83,0.00094694,120]
[319565065,1710865841938,-3409.37,0.00094694,120]
[319565066,1710865841955,-3409.37,0.00094694,120]
[319565067,1710865841975,-3409.37,0.00094694,120]
[319565068,1710865841991,-3409.37,0.00094694,120]
[319565069,1710865842006,-3409.37,0.00094694,120]
[319565070,1710865842022,-3409.37,0.00094694,120]
[319565071,1710865842036,-1146.83,0.00094696,120]
[319565072,1710865842051,-1146.83,0.00094696,120]
[319565073,1710865842064,-1146.83,0.00094696,120]
[319565074,1710865842079,-1146.83,0.00094696,120]
[319565075,1710865842093,-1146.83,0.00094696,120]
[319565076,1710865842108,-1146.83,0.00094696,120]
[319565077,1710865842123,-1146.83,0.00094696,120]
[319565078,1710865842137,-1147.02073702,0.00094696,120]
[319565079,1710865842151,-3409.37,0.00094696,120]
[319565080,1710865842166,-3409.37,0.00094696,120]
[319565082,1710865842180,-3409.37,0.00094696,120]
[319565084,1710865842193,-3409.37,0.00094696,120]
[319565085,1710865842208,-3409.37,0.00094696,120]
[319565086,1710865842225,-3409.37,0.00094696,120]
[319565087,1710865842240,-3409.37,0.00094696,120]
[319565088,1710865842254,-3409.60226057,0.00094696,120]
[319565091,1710865842269,-737.89150536,0.00094699,2]
[319565093,1710865842283,-447.40617781,0.00094699,120]
[319565095,1710865842297,-155.10021396,0.00094699,14]
[319565097,1710865842311,-155.20754076,0.00094699,14]
[319565098,1710865842325,-250.0465759,0.00094699,14]
[319565099,1710865842339,-424.30479158,0.00094998,14]
[319565100,1710865842353,-5998.999999,0.00095,60]
[319565101,1710865842436,-6998.999999,0.00095,60]
[319565102,1710865842448,-6998.999999,0.00095,60]
[319565103,1710865842458,-10000.0,0.00095,2]
[319565104,1710865842469,-150.0,0.00095499,120]
[319565105,1710865842483,-288.804628,0.0009589,120]
[319565107,1710865842494,-288.804628,0.0009589,120]
[319565108,1710865842503,-288.804628,0.0009589,120]
[319565109,1710865842514,-288.804633,0.0009589,120]
[319565110,1710865842523,-386.722558,0.0009589,120]
[319565111,1710865842532,-151.0,0.0009589,120]
[319565113,1710865842542,-1000.0,0.0009589,120]
[319565114,1710865842551,-386.722556,0.0009589,120]
[319565115,1710865842560,-969.87825,0.0009589,120]
[319565116,1710865842570,-969.87825,0.0009589,120]
[319565117,1710865842580,-712.42629528,0.00095996,14]
[319565118,1710865842589,-1112.57597937,0.00095998,90]
[319565119,1710865842598,-512.45743565,0.00095999,120]
[319565120,1710865842607,-2188.19,0.00095999,120]
[319565121,1710865842617,-500.0,0.00095999,120]
[319565123,1710865842628,-288.33028359,0.00095999,120]
[319565124,1710865842639,-171.46396254,0.00096249,120]
[319565126,1710865842648,-500.0,0.00096302,120]
[319565128,1710865842658,-310.17991441,0.00096898,14]
[319565130,1710865842667,-360.20272934,0.00096898,14]
[319565132,1710865842677,-397.9080049,0.00097,60]
[319565133,1710865842686,-420.0,0.000972,60]
[319565135,1710865842695,-2000.0,0.000972,120]
[319565137,1710865842705,-150.060351,0.000972,2]
[319565138,1710865842714,-2000.0,0.0009721,120]
[319565140,1710865842726,-2429.695058,0.0009722,120]
[319565142,1710865842736,-981.98406553,0.0009725,90]
[319565143,1710865842746,-33400.52,0.000974,120]
[319565145,1710865842758,-1287.67,0.000974,120]
[319565147,1710865842767,-1287.67,0.000974,120]
[319565149,1710865842777,-1287.67,0.000974,120]
[319565151,1710865842787,-1287.67,0.000974,120]
[319565152,1710865842798,-1287.67,0.000974,120]
[319565153,1710865842807,-188.86635313,0.00097498,14]
[319565154,1710865842818,-1000.0,0.00097498,120]
[319565155,1710865842827,-154.95351395,0.00097499,14]
[319565156,1710865842837,-1690.62797518,0.00097499,14]
[319565157,1710865842847,-155.108576,0.00097499,14]
[319565158,1710865842857,-303.0,0.000975,120]
[319565159,1710865842867,-301.0,0.000975,120]
[319565160,1710865842877,-300.0,0.000975,120]
[319565161,1710865842886,-38885.80592623,0.00098,120]
[319565162,1710865842896,-180.68711909,0.00098899,2]
[319565163,1710865842906,-524.29941204,0.00098998,14]
[319565165,1710865842916,-155.40018076,0.00098998,14]
[319565166,1710865842926,-366.20838835,0.00098998,14]
[319565168,1710865842938,-644.67484635,0.00098998,14]
[319565170,1710865842948,-155.91462232,0.00098998,14]
[319565171,1710865842960,-172.30064643,0.00098998,14]
[319565172,1710865842971,-155.20132746,0.00098998,14]
[319565173,1710865842984,-1883.57361986,0.00098998,14]
[319565174,1710865842996,-254.859933,0.00098998,4]
[319565175,1710865843009,-155.52248857,0.00098998,14]
[319565176,1710865843020,-290.25303677,0.00098998,14]
[319565177,1710865843030,-154.93802479,0.00098998,14]
[319565178,1710865843040,-800.0,0.001,120]
[319565179,1710865843051,-5000.0,0.001,120]
[319565180,1710865843063,-5000.0,0.001,120]
[319565181,1710865843074,-174.0,0.001,30]
[319565182,1710865843086,-394.297106,0.00104617,30]
[319565183,1710865843097,-1000.0,0.0010666,120]
[319565184,1710865843108,-76923.0,0.00108,120]
[319565185,1710865843120,-1002.25062107,0.00108633,120]
[319565186,1710865843131,-1287.80662794,0.00109,120]
[319565187,1710865843142,-1287.67,0.00109,120]
[319565188,1710865843153,-294.88454091,0.00109587,14]
[319565189,1710865843166,-236.54673702,0.00109589,7]
[319565190,1710865843177,-1123.07,0.00109589,120]
[319565191,1710865843186,-1203.18,0.00109589,120]
[319565192,1710865843196,-500.0,0.00109589,120]
[319565193,1710865843206,-500.0,0.00109589,120]
[319565194,1710865843217,-500.0,0.00109589,14]
[319565195,1710865843235,-500.0,0.00109589,120]
[319565196,1710865843245,-500.0,0.00109589,120]
[319565197,1710865843257,-817.06,0.00109589,120]
[319565198,1710865843268,-500.0,0.00109589,120]
[319565199,1710865843328,-652.5,0.00109589,120]
[319565200,1710865843338,-500.0,0.00109589,120]
[319565201,1710865843349,-1155.58,0.00109589,120]
[319565202,1710865843359,-465.81828989,0.00109589,120]
[319565203,1710865843369,-877.25,0.00109589,120]
[319565204,1710865843379,-361.85696395,0.00109589,120]
[319565205,1710865843390,-500.0,0.00109589,120]
[319565206,1710865843404,-500.0,0.00109589,120]
[319565207,1710865843415,-500.0,0.00109589,120]
[319565208,1710865843426,-1000.0,0.00109589,120]
[319565209,1710865843438,-2200.76,0.00109589,120]
[319565210,1710865843449,-20000.0,0.00111685,120]
[319565211,1710865843460,-1000.0,0.00123287,120]
[319565212,1710865843471,-1000.0,0.00128506,90]
[319565213,1710865843484,-1000.0,0.0012878,90]
[319565214,1710865843494,-1000.0,0.00129054,90]
[319565215,1710865843504,-1000.0,0.00129328,90]
[319565216,1710865843514,-1000.0,0.00129602,90]
[319565217,1710865843524,-1000.0,0.00129876,90]
[319565218,1710865843534,-1000.0,0.00130424,90]
[319565219,1710865843544,-1000.0,0.00130972,90]
[319565220,1710865843553,-1000.0,0.0013152,90]
[319565221,1710865843563,-1000.0,0.00132068,90]
[319565222,1710865843572,-1000.0,0.00132616,90]
[319565223,1710865843582,-1000.0,0.00133164,90]
[319565224,1710865843592,-1000.0,0.00133712,90]
[319565225,1710865843602,-6006.84,0.00133995,120]
[319565226,1710865843611,-1000.0,0.0013426,90]
[319565227,1710865843621,-350.17130393,0.00134808,90]
[319565228,1710865843630,-20000.0,0.00135882,120]
[319565229,1710865843640,-20000.0,0.00135882,120]
[319565230,1710865843649,-1000.0,0.00136986,120]
[319565231,1710865843659,-239.05379636,0.0014,2]
[319565232,1710865843668,-266.84412098,0.00149698,14]
[319565233,1710865843678,-262.67803637,0.00149798,7]
[319565234,1710865843687,-176.26158679,0.00149799,120]
[319565235,1710865843697,-365649.46207362,0.001498,120]
[319565236,1710865843707,-1000.0,0.00150684,120]
[319565237,1710865843717,-1000.0,0.00150684,7]
[319565238,1710865843729,-480.0,0.00151096,120]
[319565239,1710865843738,-243.991216,0.00156986,120]
[319565240,1710865843748,-306.0,0.00156986,120]
[319565241,1710865843757,-201.2320405,0.00157808,120]
[319565242,1710865843767,-201.2320405,0.00157808,120]
[319565243,1710865843777,-201.2320405,0.00157808,120]
[319565244,1710865843786,-153.0,0.0015863,120]
[319565245,1710865843796,-1000.0,0.00164383,120]
[319565246,1710865843806,-20000.0,0.00165322,120]
[319565247,1710865843816,-1000.0,0.0017,120]
[319565248,1710865843826,-6006.84,0.0017509,120]
[319565249,1710865843837,-1000.0,0.00178082,120]
[319565250,1710865843846,-201.2320405,0.00191425,120]
[319565251,1710865843857,-342.47421638,0.0019178,120]
[319565252,1710865843867,-224.66838478,0.00192,120]
[319565253,1710865843877,-5000.0,0.002,120]
[319565254,1710865843887,-5000.0,0.002,120]
[319565255,1710865843897,-1000.0,0.002,120]
[319565256,1710865843908,-10000.0,0.002,2]
[319565257,1710865843917,-100000.0,0.002,120]
[319565258,1710865843927,-2933.75031553,0.002,120]
[319565259,1710865843938,-9633.88818837,0.002,120]
[319565260,1710865843948,-20000.0,0.00201139,120]
[319565261,1710865843960,-6299.0,0.00203,120]
[319565262,1710865843969,-440.0,0.00213756,120]
[319565263,1710865843982,-161.97267006,0.00214151,120]
[319565264,1710865843992,-21670.1,0.00215688,120]
[319565265,1710865844003,-6006.84,0.00216186,120]
[319565266,1710865844018,-500.0,0.00219178,120]
[319565267,1710865844029,-500.0,0.00219178,120]
[319565268,1710865844042,-503.26137289,0.00219178,120]
[319565269,1710865844052,-726.71,0.00219178,120]
[319565270,1710865844063,-500.0,0.00219178,120]
[319565271,1710865844073,-500.0,0.00219178,120]
[319565272,1710865844083,-500.0,0.00219178,120]
[319565273,1710865844093,-500.0,0.00219178,120]
[319565274,1710865844103,-500.0,0.00219178,120]
[319565275,1710865844113,-500.0,0.00219178,120]
[319565276,1710865844122,-500.0,0.00219178,120]
[319565277,1710865844131,-500.0,0.00219178,120]
[319565278,1710865844141,-2442.7,0.00219178,120]
[319565279,1710865844150,-500.0,0.00219178,120]
[319565280,1710865844160,-500.0,0.00219178,120]
[319565281,1710865844170,-500.0,0.00219178,120]
[319565282,1710865844179,-833.34,0.00219178,120]
[319565283,1710865844188,-645.73,0.00219178,120]
[319565284,1710865844197,-833.25,0.00219178,120]
[319565285,1710865844207,-500.0,0.00219178,120]
[319565286,1710865844216,-1159.35,0.00219178,120]
[319565287,1710865844229,-1041.69,0.00219178,120]
[319565288,1710865844239,-1484.2,0.00219178,120]
[319565289,1710865844249,-3520.88,0.00219178,120]
[319565290,1710865844258,-500.0,0.00219178,120]
[319565291,1710865844267,-500.0,0.00219178,120]
[319565292,1710865844277,-500.0,0.00219178,120]
[319565293,1710865844286,-500.0,0.00219178,120]
[319565294,1710865844296,-500.0,0.00219178,120]
[319565295,1710865844304,-500.0,0.00219178,120]
[319565296,1710865844314,-502.19832843,0.00219178,120]
[319565297,1710865844323,-500.0,0.00219178,120]
[319565298,1710865844333,-500.0,0.00219178,120]
[319565299,1710865844343,-1092.24,0.00219178,120]
[319565300,1710865844353,-500.0,0.00219178,120]
[319565301,1710865844362,-456.01930655,0.00219178,120]
[319565302,1710865844372,-500.0,0.00219178,2]
[319565303,1710865844383,-500.0,0.00219178,120]
[319565304,1710865844393,-1296.7,0.00219178,120]
[319565305,1710865844404,-1681.67,0.00219178,120]
[319565307,1710865844415,-2161.62,0.00219178,120]
[319565309,1710865844426,-623.18,0.00219178,120]
[319565310,1710865844436,-1794.71,0.00219178,120]
[319565311,1710865844447,-8046.37,0.00219178,120]
[319565312,1710865844457,-2355.08,0.00219178,120]
[319565313,1710865844468,-8328.97,0.00219178,120]
[319565314,1710865844484,-443.36256858,0.00219178,120]
[319565315,1710865844496,-1635.75,0.00219178,120]
[319565316,1710865844509,-500.0,0.00219178,120]
[319565317,1710865844521,-6666.66,0.00219178,120]
[319565318,1710865844532,-500.0,0.00219178,120]
[319565319,1710865844546,-500.0,0.00219178,120]
[319565320,1710865844559,-1024.27,0.00219178,120]
[319565321,1710865844570,-1103.23,0.00219178,120]
[319565322,1710865844582,-4166.66,0.00219178,120]
[319565323,1710865844593,-500.0,0.00219178,120]
[319565324,1710865844603,-6666.66,0.00219178,120]
[319565325,1710865844614,-500.0,0.00219178,120]
[319565326,1710865844625,-500.0,0.00219178,120]
[319565327,1710865844637,-500.0,0.00219178,120]
[319565328,1710865844648,-8333.26,0.00219178,120]
[319565329,1710865844660,-2200.76,0.00219178,120]
[319565330,1710865844672,-500.0,0.00219178,120]
[319565331,1710865844683,-500.0,0.00219178,120]
[319565332,1710865844695,-500.0,0.00219178,120]
[319565333,1710865844706,-500.0,0.00219178,120]
[319565334,1710865844717,-848.69,0.00219178,120]
[319565335,1710865844734,-682.89,0.00219178,120]
[319565336,1710865844745,-500.0,0.00219178,120]
[319565337,1710865844762,-500.0,0.00219178,120]
[319565338,1710865844775,-500.0,0.00219178,120]
[319565339,1710865844786,-1246.92,0.00219178,7]
[319565340,1710865844798,-500.0,0.00219178,120]
[319565341,1710865844810,-4176.57,0.00219178,120]
[319565342,1710865844821,-500.0,0.00219178,120]
[319565343,1710865844832,-500.0,0.00219178,120]
[319565344,1710865844844,-500.0,0.00219178,120]
[319565345,1710865844855,-540.08,0.00219178,120]
[319565346,1710865844869,-2975.61,0.00219178,120]
[319565347,1710865844881,-675.79,0.00219178,120]
[319565348,1710865844893,-500.0,0.00219178,120]
[319565349,1710865844905,-500.0,0.00219178,120]
[319565350,1710865844916,-503.95805019,0.00219178,120]
[319565351,1710865844927,-500.0,0.00219178,120]
[319565352,1710865844940,-1286.9,0.00219178,120]
[319565353,1710865844952,-500.0,0.00219178,120]
[319565354,1710865844970,-500.0,0.00219178,120]
[319565355,1710865844992,-500.0,0.00219178,120]
[319565356,1710865845008,-2366.03,0.00219178,120]
[319565357,1710865845020,-500.0,0.00219178,120]
[319565358,1710865845032,-500.0,0.00219178,120]
[319565359,1710865845042,-3552.79,0.00219178,120]
[319565360,1710865845053,-500.0,0.00219178,120]
[319565361,1710865845064,-586.37,0.00219178,120]
[319565362,1710865845078,-2496.15,0.00219178,120]
[319565363,1710865845089,-500.0,0.00219178,120]
[319565364,1710865845102,-4166.66,0.00219178,120]
[319565365,1710865845113,-500.0,0.00219178,120]
[319565366,1710865845125,-500.0,0.00219178,120]
[319565367,1710865845136,-3500.0,0.00219178,120]
[319565368,1710865845146,-21539.57,0.00219178,120]
[319565369,1710865845158,-2083.29,0.00219178,120]
[319565370,1710865845170,-500.0,0.00219178,120]
[319565371,1710865845182,-500.0,0.00219178,120]
[319565372,1710865845194,-500.0,0.00219178,120]
[319565373,1710865845205,-2496.09,0.00219178,120]
[319565374,1710865845216,-501.48103963,0.00219178,120]
[319565375,1710865845232,-500.0,0.00219178,120]
[319565376,1710865845243,-6594.02,0.00219178,120]
[319565377,1710865845254,-3902.32,0.00219178,120]
[319565378,1710865845264,-13811.08,0.00219178,120]
[319565379,1710865845275,-500.0,0.00219178,120]
[319565381,1710865845287,-2771.06,0.00219178,120]
[319565382,1710865845298,-500.70015587,0.00219178,120]
[319565384,1710865845309,-663.82,0.00219178,120]
[319565386,1710865845320,-729.76,0.00219178,120]
[319565387,1710865845330,-862.95,0.00219178,120]
[319565389,1710865845341,-352.44222052,0.00219178,120]
[319565390,1710865845352,-20634.37,0.00219178,90]
[319565392,1710865845362,-500.0,0.00219178,120]
[319565395,1710865845373,-500.0,0.00219178,120]
[319565398,1710865845390,-740.81,0.00219178,120]
[319565400,1710865845400,-500.0,0.00219178,120]
[319565403,1710865845411,-500.0,0.00219178,120]
[319565406,1710865845422,-1000.0,0.00219178,7]
[319565409,1710865845434,-1043.22,0.00219178,120]
[319565411,1710865845449,-4864.79,0.00219178,120]
[319565414,1710865845460,-1800.49,0.00219178,120]
[319565416,1710865845471,-1883.07,0.00219178,120]
[319565420,1710865845489,-500.0,0.00219178,120]
[319565422,1710865845500,-2075.75,0.00219178,120]
[319565425,1710865845512,-3052.2,0.00219178,120]
[319565428,1710865845523,-1260.96,0.00219178,120]
[319565431,1710865845535,-775.91,0.00219178,120]
[319565434,1710865845548,-3531.49,0.00219178,120]
[319565436,1710865845559,-500.0,0.00219178,120]
[319565439,1710865845570,-770.89,0.00219178,120]
[319565440,1710865845580,-497.1906092,0.00219178,120]
[319565442,1710865845591,-500.0,0.00219178,120]
[319565446,1710865845603,-500.0,0.00219178,120]
[319565448,1710865845614,-1246.25,0.00219178,120]
[319565452,1710865845625,-500.0,0.00219178,120]
[319565458,1710865845636,-1468.93,0.00219178,120]
[319565472,1710865845732,-1486.32,0.00219178,120]
[319565475,1710865845743,-500.0,0.00219178,120]
[319565478,1710865845755,-500.0,0.0022,120]
[319565481,1710865845765,-161.97267006,0.00222367,120]
[319565484,1710865845776,-500.0,0.00226026,120]
[319565486,1710865845787,-1666.66,0.00226026,120]
[319565488,1710865845798,-500.0,0.00226026,120]
[319565490,1710865845810,-500.0,0.00226026,120]
[319565492,1710865845821,-342.74152748,0.00226026,120]
[319565494,1710865845832,-500.0,0.00226026,120]
[319565497,1710865845843,-500.0,0.00226026,120]
[319565500,1710865845855,-1083.46,0.00226026,120]
[319565501,1710865845867,-530.98317716,0.00226026,120]
[319565503,1710865845878,-497.15557359,0.00226026,120]
[319565505,1710865845889,-500.0,0.00226026,120]
[319565507,1710865845900,-504.71088295,0.00226026,120]
[319565509,1710865845911,-347.38719446,0.00226026,120]
[319565510,1710865845922,-500.0,0.00226026,120]
[319565511,1710865845932,-3135.33,0.00226026,120]
[319565512,1710865845942,-500.0,0.00226026,120]
[319565513,1710865845953,-500.0,0.00226026,120]
[319565514,1710865845971,-500.0,0.00226026,120]
[319565515,1710865845985,-500.0,0.00226026,120]
[319565516,1710865845996,-500.0,0.00226026,120]
[319565518,1710865846006,-500.0,0.00226026,120]
[319565520,1710865846018,-500.0,0.00226026,120]
[319565521,1710865846028,-500.0,0.00226026,120]
[319565522,1710865846039,-500.0,0.00226026,120]
[319565524,1710865846050,-270.71767118,0.00226026,120]
[319565525,1710865846059,-608.9,0.00226026,120]
[319565526,1710865846069,-500.0,0.00226026,120]
[319565528,1710865846080,-500.0,0.00226026,120]
[319565529,1710865846091,-583.09375149,0.00226026,120]